Cogmind - Beta 14 @@@ ROGUE MODE // 2025.04.23 @ 16:33:23 Player: Glogmind Result: Self-destructed Performance ------------- Evolutions (1) 500 Regions Visited (3) 600 Robots Destroyed (22) 110 Value Destroyed (408) 408 Prototype IDs (0) 0 Alien Tech Used (0) 0 Bonus (0) 0 TOTAL SCORE: 1618 Bonus ------- None Cogmind --------- Core Integrity 372/400 Matter 229/300 Energy 250/250 System Corruption 0% Temperature Cool (9) Movement Treading (160) Location -9/Materials Parts ------- > --- POWER (1) -------- Ion Engine > --- PROPULSION (2) --- Light Treads Light Treads > --- UTILITY (4) ------ Heat Sink Large Storage Unit Seismic Detector > --- WEAPON (2) ------- Heavy Assault Rifle Grenade Launcher > --- INVENTORY (15) --- Ion Engine Light Treads Light Treads Heat Sink Heat Sink High-capacity Matter Pod (200) High-capacity Matter Pod (200) Improved Terrain Scanner Medium Laser Beam Cannon Assault Rifle Heavy Assault Rifle Hammer Ripper Peak State ------------ > --- POWER ------------ Ion Engine > --- PROPULSION ------- Light Treads Light Treads > --- UTILITY ---------- Heat Sink Large Storage Unit Improved Terrain Scanner Seismic Detector > --- WEAPON ----------- Medium Laser Heavy Assault Rifle > --- INVENTORY -------- Ion Engine Light Ion Engine Light Treads Light Treads High-capacity Matter Pod High-capacity Matter Pod Beam Cannon Assault Rifle Grenade Launcher Hammer Ripper [Rating: 13] Favorites ----------- Power Ion Engine Engine Ion Engine Propulsion Light Treads Treads Light Treads Utility Seismic Detector Device Seismic Detector Storage Large Storage Unit Processor Targeting Computer Protection Light Armor Plating Weapon Assault Rifle Energy Gun Medium Laser Ballistic Gun Assault Rifle Launcher Grenade Launcher Build | -11 -10 -10 -9 ------- Run | Yrd Mat Min Mat Slots Evolved 2 | . . . 2 Power . | . . . . Propulsion . | . . . . Utility 2 | . . . 2 Weapon . | . . . . Parts Attached 24 | 6 3 . 15 Power 2 | 1 . . 1 Engine 2 | 1 . . 1 Core . | . . . . Reactor . | . . . . Propulsion 5 | 2 . . 3 Treads 5 | 2 . . 3 Leg . | . . . . Wheel . | . . . . Hover . | . . . . Flight . | . . . . Utility 9 | 1 2 . 6 Device 4 | 1 . . 3 Storage 2 | . 2 . . Processor 2 | . . . 2 Hackware . | . . . . Protection 1 | . . . 1 Artifact . | . . . . Weapon 8 | 2 1 . 5 Energy Gun 2 | . 1 . 1 Energy Cannon . | . . . . Ballistic Gun 4 | 2 . . 2 Ballistic Cannon . | . . . . Launcher 2 | . . . 2 Special Weapon . | . . . . Impact Weapon . | . . . . Slashing Weapon . | . . . . Piercing Weapon . | . . . . Special Melee Weapon . | . . . . Unidentified Prototypes . | . . . . Parts Lost 2 | . . . 2 Power . | . . . . Propulsion . | . . . . Utility 2 | . . . 2 Weapon . | . . . . Highest Loss Streak 1 | . . . 1 To Critical Strikes . | . . . . Average Slot Usage (%) 97 | . 96 100 98 Engine 12 | . 14 14 11 Treads 25 | . 28 28 22 Device 17 | . 14 14 22 Storage 11 | . 10 14 11 Protection 2 | . . . 6 Energy Gun 7 | . 3 14 8 Ballistic Gun 17 | . 25 14 11 Peak Build Rating 13 | 6 8 8 13 Average Rating 8 | 4 6 7 11 On Entrance 5 | . 6 7 8 Naked Turns . | . . . . Heaviest Build 35 | 9 30 30 35 Greatest Support 40 | 40 40 40 40 Greatest Overweight (x) . | . . . . Average Overweight (x) . | . . . . Largest Inventory Capacity 15 | 5 15 15 15 Average Capacity 12 | 5 9 15 15 Most Carried 15 | 2 8 11 15 Average Carried 8 | . 4 9 12 Final Capacity 15 | 5 15 15 15 Final Carried 14 | 2 7 11 14 Class Distribution -------------------- 75% | Mutant 24% | Scavenger-Mutant Dominant Class ---------------- Mutant | -10/Materials Mutant | -10/Mines Scavenger-Mutant | -9/Materials Resources | -11 -10 -10 -9 ----------- Run | Yrd Mat Min Mat Matter Collected 595 | 276 63 21 235 Remotely . | . . . . Salvage Created 628 | 106 121 . 401 Parts 55 | 8 13 . 34 Haulers Intercepted 3 | . . . 3 Recyclers Shooed 1 | . . . 1 Parts Field Recycled . | . . . . Retrieved Matter . | . . . . Parts Self-Destructed . | . . . . Prevented . | . . . . Kills | -11 -10 -10 -9 ------- Run | Yrd Mat Min Mat Combat Hostiles Destroyed 15 | . 5 . 10 Guns 9 | . 5 . 4 AOE 6 | . . . 6 Classes Destroyed 7 | 2 2 . 3 Tunneler 2 | 2 . . . Hauler 3 | . . . 3 Recycler 1 | 1 . . . Watcher 1 | . . . 1 Swarmer 7 | . 3 . 4 Grunt 7 | . 2 . 5 Sentry 1 | . . . 1 Best Kill Streak 5 | 3 3 . 5 Combat Bots Only 4 | . 3 . 4 Max Kills in Single Turn 3 | 1 1 . 3 Gunslinging . | . . . . Exploded 3 | . . . 3 Melee . | . . . . Uniques/NPCs Destroyed . | . . . . Combat | -11 -10 -10 -9 -------- Run | Yrd Mat Min Mat Hostile Shots Fired 93 | . 27 . 66 Missed 26 | . 5 . 21 Damage Taken 705 | . 199 . 506 Core 51 | . 23 . 28 Absorbed by Shields . | . . . . Core Remaining (%) 95 | 100 . 90 . Volleys Fired 64 | 4 14 . 46 Largest 2 | 2 2 . 2 Hottest 73 | 40 40 . 73 Shots Fired 102 | 8 28 . 66 Gun 98 | 8 28 . 62 Cannon . | . . . . Launcher 4 | . . . 4 Special . | . . . . Kinetic 78 | 8 28 . 42 Thermal 20 | . . . 20 Explosive 4 | . . . 4 Electromagnetic . | . . . . Robot Hit Streak 15 | 5 7 . 15 Robot Miss Streak 4 | . 4 . 3 Penetration Max . | . . . . Secondary Targets 2 | . 2 . . Max Gunslinging Chain 1 | . 1 . . Shots Hit Robots 65 | 5 16 . 44 Core Hits 42 | 4 9 . 29 Critical Kills 1 | . . . 1 Critical Parts Destroyed . | . . . . Critical Strikes 1 | . . . 1 Destroy 1 | . . . 1 Melee Attacks . | . . . . Impact . | . . . . Slashing . | . . . . Piercing . | . . . . Sneak Attacks . | . . . . Combat Hostiles . | . . . . Follow-up Attacks . | . . . . Damage Inflicted 1260 | 63 160 9 1028 Guns 861 | 63 159 . 639 Cannons . | . . . . Explosions 389 | . . . 389 Melee . | . . . . Ramming 10 | . 1 9 . Kinetic 670 | 63 159 . 448 Thermal 191 | . . . 191 Explosive 389 | . . . 389 Electromagnetic . | . . . . Impact . | . . . . Slashing . | . . . . Piercing . | . . . . Highest Corruption . | . . . . Average Corruption . | . . . . Corruption Purged . | . . . . Corruption Blocked . | . . . . Overload Shots . | . . . . Overflow Damage 27 | . . . 27 Projectiles . | . . . . Explosions 27 | . . . 27 Melee . | . . . . Knockbacks . | . . . . Impact . | . . . . Kinetic . | . . . . Secondary . | . . . . Self-Inflicted Damage . | . . . . Shots . | . . . . Rammed 3 | . 1 2 . Targets Rammed 3 | . 1 2 . Kicked . | . . . . Crushed . | . . . . Highest Temperature 6 | . 6 . 3 Average Temperature 4 | . 6 . 3 Received Heat Transfer 222 | . 30 . 192 Siege Activations . | . . . . Robots Corrupted . | . . . . Combat Hostiles . | . . . . Parts Fried . | . . . . Impact Corruptions . | . . . . Robots Melted . | . . . . Combat Hostiles . | . . . . Parts Melted . | . . . . Heat Transferred 555 | . . . 555 Parts Sabotaged . | . . . . Parts Stolen . | . . . . Parts Stripped . | . . . . Power Chain Reactions . | . . . . Alert | -11 -10 -10 -9 ------- Run | Yrd Mat Min Mat Peak Influence 302 | 15 141 5 302 Initial 9 | . 9 5 1 Average 68 | 4 67 5 131 Maximum Alert Level 1 | . . . 1 Low Security (%) 91 | 100 100 100 74 Level 1 8 | . . . 25 Level 2 . | . . . . Level 3 . | . . . . Level 4 . | . . . . Level 5 . | . . . . High Security . | . . . . Max Security . | . . . . Squads Dispatched . | . . . . Investigation . | . . . . Extermination . | . . . . Reinforcement . | . . . . Assault . | . . . . Garrison . | . . . . Intercept . | . . . . Searches Triggered . | . . . . Construction Impeded . | . . . . Haulers Reinforced . | . . . . Active Scanning Responses . | . . . . Cargo Convoy Interrupts . | . . . . Stealth | -11 -10 -10 -9 --------- Run | Yrd Mat Min Mat Distress Signals 3 | . 1 . 2 Communications Jammed . | . . . . Distress Signals . | . . . . Times Spotted 24 | . 9 . 15 Peak Tracking Total 7 | . 3 . 7 Tactical Retreats . | . . . . Traps | -11 -10 -10 -9 ------- Run | Yrd Mat Min Mat Traps Triggered . | . . . . Indirectly . | . . . . Trap Hack Attempts . | . . . . Triggered . | . . . . Disarmed . | . . . . Reprogrammed . | . . . . Reused . | . . . . Traps Extracted . | . . . . Installed . | . . . . Triggered . | . . . . Machines | -11 -10 -10 -9 ---------- Run | Yrd Mat Min Mat Machines Disabled . | . . . . Max in Single Turn . | . . . . Machines Repaired . | . . . . Machines Dismantled . | . . . . Machines Sabotaged . | . . . . Overloaded Fab Kills . | . . . . Hacking | -11 -10 -10 -9 --------- Run | Yrd Mat Min Mat Machines Accessed 6 | . 6 . . Terminals 5 | . 5 . . Fabricators . | . . . . Repair Stations . | . . . . Recycling Units 1 | . 1 . . Scanalyzers . | . . . . Garrison Access . | . . . . Total Hacks 24 | . 24 . . Successful 9 | . 9 . . Failed 15 | . 15 . . Catastrophic 1 | . 1 . . Database Lockouts . | . . . . Manual 13 | . 13 . . Terminals 21 | . 21 . . Fabricators . | . . . . Repair Stations . | . . . . Recycling Units 3 | . 3 . . Scanalyzers . | . . . . Garrison Access . | . . . . Terminal Hacks 4 | . 4 . . Robot Analysis 3 | . 3 . . Unreport Threat 1 | . 1 . . Fabricator Hacks . | . . . . Repair Station Hacks . | . . . . Recycling Unit Hacks . | . . . . Scanalyzer . | . . . . Garrison Access Hacks . | . . . . Unauthorized Hacks 5 | . 5 . . Terminals 5 | . 5 . . Skim 5 | . 5 . . Fabricators . | . . . . Repair Stations . | . . . . Recycling Units . | . . . . Scanalyzers . | . . . . Garrison Access . | . . . . Data Cores Recovered . | . . . . Used . | . . . . Hacking Detections 6 | . 6 . . Full Trace Events . | . . . . Feedback Events . | . . . . Feedback Blocked . | . . . . Robot Schematics Acquired . | . . . . Robots Built . | . . . . Authchips . | . . . . Time . | . . . . Total Robot Build Rating . | . . . . Part Schematics Acquired . | . . . . Parts Built . | . . . . Authchips . | . . . . Time . | . . . . Total Part Build Rating . | . . . . Parts Repaired . | . . . . Time . | . . . . Parts Recycled . | . . . . Recycled Matter . | . . . . Retrieved Matter . | . . . . Retrieved Components . | . . . . Parts Scanalyzed . | . . . . Part Schematics Acquired . | . . . . Parts Damaged . | . . . . Bothacking | -11 -10 -10 -9 ------------ Run | Yrd Mat Min Mat Used RIF Installer . | . . . . Robots Hacked . | . . . . Non-combat . | . . . . Combat . | . . . . Robot Hacks Applied . | . . . . Relay Couplers Released . | . . . . Fabnet Peak Effective % . | . . . . Robots Rewired . | . . . . Allies Hacked . | . . . . Hacks Repelled . | . . . . Allies | -11 -10 -10 -9 -------- Run | Yrd Mat Min Mat Total Allies . | . . . . Largest Group . | . . . . Highest-Rated Group . | . . . . Highest-Rated Ally . | . . . . Total Orders . | . . . . Ally Attacks . | . . . . Total Damage . | . . . . Kills . | . . . . Allies Corrupted . | . . . . Allies Melted . | . . . . Intel | -11 -10 -10 -9 ------- Run | Yrd Mat Min Mat Robot Analysis Total 3 | . 3 . . Derelict Logs Recovered 1 | . . 1 . Drone Launches . | . . . . Drone Recoveries . | . . . . Exploration | -11 -10 -10 -9 ------------- Run | Yrd Mat Min Mat Turns Passed 1166 | 96 417 275 378 Spaces Moved 581 | 53 226 168 134 Core 13 | 13 . . . Treads 568 | 40 226 168 134 Legs . | . . . . Wheels . | . . . . Hover . | . . . . Flight . | . . . . Fastest Speed 50 | 50 160 160 160 Average Speed 157 | 133 160 160 160 Slowest Speed 160 | 160 160 160 160 Overloaded Moves . | . . . . Propulsion Burnouts . | . . . . Robots Hopped . | . . . . Cave-ins Triggered . | . . . . Exploration Rate (%) 29 | 5 50 48 15 Regions Visited 3 Branch Regions 1 Pre-discovered Areas 1 | . 1 . . Known Exits Taken . | . . . . Unknown Exits Taken 3 | 1 1 1 . Scrap Searched . | . . . . Spaces Dug . | . . . . Terrain Destroyed 29 | . . . 29 Melee . | . . . . Projectile . | . . . . AOE 29 | . . . 29 Terrain Rammed . | . . . . Walls Destroyed . | . . . . Machines Disabled . | . . . . Actions | -11 -10 -10 -9 --------- Run | Yrd Mat Min Mat Total 727 | 68 255 173 231 Wait 35 | 4 5 . 26 Move 578 | 52 225 167 134 Hop . | . . . . Pick Up 15 | 2 5 4 4 Fast Attach 9 | 6 2 . 1 Attach 4 | . . . 4 Detach 1 | . . . 1 Swap 11 | . 1 . 10 Drop 7 | . 2 . 5 Fire 64 | 4 14 . 46 Melee . | . . . . Ram . | . . . . Kick . | . . . . Crush 3 | . 1 2 . Escape Stasis . | . . . . Rewire . | . . . . Trap . | . . . . Miscellaneous . | . . . . Route ------- -11/Scrapyard -10/Materials (discovered 2 exits: [*Mat] / [*Min]) -10/Mines -9/Materials (discovered 1 exit: Min) History --------- Turn | Location | Event 5 | -11/Scrapyard | Discovered new exit (range 16) 97 | -11/Scrapyard | Entered Materials 284 | -10/Materials | Discovered new exit (range 5) 301 | -10/Materials | Build established: Mutant 489 | -10/Materials | Learned location of Subcaves (-10) 498 | -10/Materials | Discovered new exit (range 8) 514 | -10/Materials | Entered Mines 538 | -10/Mines | A weapon hastily lodged in a ceiling crevice suddenly fell to the ground 553 | -10/Mines | YI-UF0 nonchalantly dropped a Grenade Launcher on the ground 662 | -10/Mines | Learned location of 1 exit from Materials 781 | -10/Mines | Discovered new exit (range 7) 789 | -10/Mines | Entered Materials 789 | -9/Materials | Evolved 2 slots: Utility x2 790 | -9/Materials | Identified exit to Mines 1167 | -9/Materials | Self-destructed Last Messages --------------- G-34 Mercenary destroyed. W-16 Scout destroyed. K-01 Serf collects debris. K-01 Serf destroyed. K-01 Serf collects debris. U-05 Engineer lays Concrete. U-05 Engineer builds a Wall. U-05 Engineer lays Concrete. K-01 Serf collects debris. U-05 Engineer lays Concrete. U-05 Engineer builds a Wall. U-05 Engineer lays Concrete. K-01 Serf collects debris. U-05 Engineer lays Concrete. U-05 Engineer builds a Wall. U-05 Engineer lays Concrete. U-05 Engineer builds a Wall. K-01 Serf collects debris. U-05 Engineer lays Concrete. Lgt. Armor Plating destroyed. Map ----- +----------------------------------------------------+ | ?????????????????????????????????????????????????? | | ?????????????????????????????????????????????????? | | ?????????????????????????????????????????????????? | | ?????????????????????????????????????????????????? | | ?????????????????????????????????????????????????? | | ?????????????????????????????????????????????????? | | ?????????????????????????????????????????????????? | | ???????????????????????????????????????????????### | | ????????????????????????? ??????????????????# | | ?????????????????????? ??????????????????# | | ??????????????????????? ??????????????????# | | ?????????????????????? #?????????????????# | | ??????????????????????##u #?????????????????# | | ???????????????????????#%[ku #?????????????????# | | ??????????????????????? =% #?????????????????# | | ??????????????????????? =! g #?????????????????# | | ???????????????#??>???? #???????????######### | | ???????????????# ?????? #???????????# | | ???????????????# ?????# * #???????????# = | | ???????????????# ????# u% #??????##???# / | | ????????????????# #### ############# ##### | | ????????????????# !|%!%= # | | ???????????###### !|%* # = | | ???????????###= * != % # | | ?????????? *u=[ # "" | | ?????????? %%= @ ############ # """ | | ?????????? *s u ###### ## #??# # """ | | ?????????????#### ???????# ## #??# # """ | | ?????????????????????????# ## [ #??# # "" | | ?????????????????????????# ## #??# ##### | | ????????????????????????## ##!%= #?## #???? | | ????????????????????????# ##+######??# #???? | | ????????????????????????# =[[ #######* #???? | | ????????????????????????# = * #???? | | ????????????????????????# = ####### #???? | | ????????????????????????# ##+#####???# #???? | | ????????????????????????####### """ #???# #???? | | ??????????????????????????????# """ #???# #???? | | ??????????????????????????????# """ #???# #???? | | ??????????????????????????????# #???# #???? | | ??????????????????????????????# ] #???# +???? | | ??????????????????????????????# #???#+### ??? | | ??????????????????????????????########???????? ??? | | ??????????????????????????????????????????????? ?? | | ??????????????????????????????????????????????? ?? | | ???????????????????????????????????????????????? ? | | ?????????????????????????????????????????????????? | | ?????????????????????????????????????????????????? | | ?????????????????????????????????????????????????? | | ?????????????????????????????????????????????????? | +----------------------------------------------------+ Best States ------------- Heat Dissipation 38 Energy Generation 10 Energy Capacity 250 Matter Stores 300 Matter Capacity 300 Sight Range 16 Terrain Scan Range 16 Terrain Scan Density 10 Armor Coverage 150 Evasion (%) 50 Targeting Accuracy 5 Recoil Reduction 2 Item Schematics ----------------- None Robot Schematics ------------------ None Fabricated ------------ Nothing Alien Tech Used ----------------- None Achievements -------------- None Challenges ------------ None Game ------ Seed SingularityAerolevFilter Manual? 0 Play Time 00:10:32 Cumulative 55.5 hours Start 2025.04.23 @ 16:23:45 End 2025.04.23 @ 16:33:23 Sessions 1 Manual Loads 0 Difficulty Rogue Special Mode None Game No. 92 Rogue 92 Adventurer 0 Explorer 0 Win Type - Total 1 Types 1/0/0/0/0/0/0/0/0 Lore% 16 Gallery% 40 Achievement% 37 Wizard Run 0 Options --------- Layout 1 ASCII 0 Keyboard 0 Movement Mouse Keybinds 0 Fullscreen 1 Font 24/Smallcaps Map View 50x40 Zoom Use 0% Tactical HUD 0 Map Filters NONE Filters NONE Steam 0 RUN: f67cd220-8784-4b4b-aac3-0929bb13be86